bitfinex/quotes_ETHUSD_20220213
["timestamp","ask_amount","ask_price","bid_price","bid_amount"]
[1644742916405,3.56599627,2928.0,2927.6,0.01096671]
[1644742916804,0.01567721,2927.8,2927.6,0.01096671]
[1644742917054,4.16375828,2928.3,2927.3,1.00357096]
[1644742917247,1.45283111,2928.2,2927.6,0.0109666]
[1644742917446,3.75982398,2928.1,2927.6,0.0109666]
[1644742917845,0.1706,2928.1,2927.6,0.0109666]
[1644742918046,0.1706,2928.2,2927.6,0.0109666]
[1644742918246,0.01567721,2928.0,2927.3,0.00357096]
[1644742918446,0.1706,2928.2,2927.6,0.01096671]
[1644742919449,0.1706,2928.2,2927.3,0.00357096]
[1644742919653,0.1706,2928.2,2927.6,0.01096682]
[1644742919853,0.01567721,2927.8,2927.6,0.01096682]
[1644742920052,0.1706,2928.2,2927.6,0.01096682]
[1644742920553,0.1706,2928.2,2927.3,1.92408371]
[1644742920799,0.1706,2928.2,2927.6,0.01096682]
[1644742921398,0.01567721,2927.9,2927.6,0.01096682]
[1644742921601,0.1706,2928.2,2927.6,0.01096682]
[1644742921801,0.1706,2928.2,2927.3,1.00357096]
[1644742922000,0.1706,2928.2,2927.6,0.01096649]
[1644742923001,0.01567721,2927.9,2927.3,0.00357096]
[1644742923201,0.1706,2928.2,2927.6,0.01096682]
[1644742924205,0.1706,2928.2,2927.3,0.00357096]
[1644742924402,0.01567721,2927.8,2927.3,1.00357096]
[1644742924656,0.01567721,2927.8,2927.6,0.01096682]
[1644742924854,4.44117468,2928.2,2927.6,0.01096682]
[1644742925254,1.45292914,2928.1,2927.6,0.01096682]
[1644742925454,1.45292914,2928.1,2927.3,1.00357096]
[1644742925455,3.74024566,2928.0,2927.3,0.00357096]
[1644742925655,3.74024566,2928.0,2927.6,0.01096682]
[1644742925856,0.1706,2928.2,2927.6,0.01096682]
[1644742925857,4.26785455,2928.2,2927.6,0.01096682]
[1644742926054,1.45292373,2928.1,2927.6,0.01096682]
[1644742926255,3.63626305,2928.0,2927.6,0.01096682]
[1644742926658,0.1706,2928.0,2927.3,0.00357096]
[1644742926961,3.82213456,2928.2,2927.0,0.25]
[1644742926962,6.45299453,2927.9,2927.6,0.0109666]
[1644742927157,5.01189166,2927.8,2927.6,0.0109666]
[1644742927356,0.02193319,2927.5,2927.1,0.00357096]
[1644742927757,1.15494207,2927.4,2927.1,0.00357096]
[1644742927958,2.02714252,2927.3,2927.1,0.00357096]
[1644742928158,2.02714252,2927.3,2926.3,0.17437096]
[1644742929110,0.01567721,2926.8,2926.3,0.17437096]
[1644742929304,2.19794252,2927.3,2926.3,0.00357096]
[1644742930511,0.01567721,2926.8,2926.3,0.00357096]
[1644742930708,2.19794252,2927.3,2926.3,0.00357096]
[1644742931719,2.19794252,2927.3,2926.7,0.01096773]
[1644742932152,0.01567721,2927.0,2926.7,0.01096773]
[1644742932352,2.19794252,2927.3,2926.7,0.01096773]
[1644742932552,2.19794252,2927.3,2926.3,0.00357096]
[1644742932950,2.19794252,2927.3,2926.7,0.01096765]
[1644742933150,0.1708,2927.3,2926.7,0.01096765]
[1644742933552,0.01567721,2927.0,2926.7,0.01096765]
[1644742933751,0.01567721,2927.0,2926.3,0.00357096]
[1644742933952,0.1708,2927.3,2926.3,0.00357096]
[1644742934153,0.1708,2927.3,2926.9,0.01096743]
[1644742934955,0.1708,2927.3,2926.3,0.00357096]
[1644742935158,0.01567721,2927.1,2927.0,0.01096728]
[1644742935358,0.1708,2927.3,2927.0,0.01096728]
[1644742936307,0.1708,2927.3,2926.3,0.00357096]
[1644742936506,0.1708,2927.3,2927.0,0.0109672]
[1644742937515,0.1708,2927.3,2926.3,0.00357096]
[1644742937710,1.15494207,2927.4,2927.0,0.0109672]
[1644742938511,3.00881515,2927.4,2926.3,0.00357096]
[1644742938710,1.87646884,2927.3,2926.3,0.00357096]
[1644742938911,1.15494207,2927.4,2927.1,0.01096713]
[1644742939752,1.15494207,2927.4,2926.4,1.00357096]
[1644742939951,1.15494207,2927.4,2926.4,1.60357096]
[1644742940151,1.15494207,2927.4,2927.1,0.01096705]
[1644742941053,1.15494207,2927.4,2926.4,1.30357096]
[1644742941253,0.1708,2927.3,2927.1,0.01096705]
[1644742942253,0.1708,2927.3,2926.4,1.17437096]
[1644742942453,0.1708,2927.3,2927.1,0.01096713]
[1644742942854,0.01567721,2927.2,2927.1,0.01096713]
[1644742943502,0.01567721,2927.2,2926.6,0.04387509]
[1644742943503,0.01567721,2927.2,2926.6,0.00357096]
[1644742943702,0.01567721,2927.2,2927.0,0.0109672]
[1644742943903,1.15494207,2927.4,2927.0,0.0109672]
[1644742944107,0.29833313,2927.5,2927.0,0.0109672]
[1644742944307,0.01567721,2927.2,2927.0,0.0109672]
[1644742944505,0.29833313,2927.5,2926.8,0.00357096]
[1644742944721,0.02193319,2927.5,2926.8,3.2754064]
[1644742944910,0.02193319,2927.5,2927.0,0.01096728]
[1644742945107,0.02193319,2927.5,2927.1,0.496]
[1644742945310,0.02193319,2927.5,2927.2,2.28980749]
[1644742945509,0.02193319,2927.5,2927.3,0.496]
[1644742945707,0.02193319,2927.5,2927.3,0.49957096]
[1644742945907,0.01567721,2927.4,2927.3,1.49957096]
[1644742946107,0.01567721,2927.4,2927.3,1.51053779]
[1644742947152,0.01567721,2927.4,2927.3,5.33530959]
[1644742947554,0.01567721,2927.4,2927.3,5.1632183]
[1644742949355,0.01567721,2927.4,2927.3,1.49957096]
[1644742952002,0.02193319,2927.5,2927.3,1.49957096]
[1644742952203,0.01432285,2927.4,2927.3,1.49957096]
[1644742953404,0.01432285,2927.4,2927.3,0.49957096]
[1644742953702,0.01432285,2927.4,2927.3,1.49957096]
[1644742953903,0.01432285,2927.4,2927.3,0.79957096]
[1644742954755,0.01432285,2927.4,2927.3,1.79957096]
[1644742955058,0.01432285,2927.4,2927.3,0.49957096]
[1644742958701,0.01432285,2927.4,2927.3,0.79957096]
[1644742958902,0.01432285,2927.4,2927.3,0.49957096]
[1644742960007,0.01432285,2927.4,2927.3,0.00357096]
[1644742962651,0.01432285,2927.4,2927.2,1.4398]
[1644742962954,0.01432285,2927.3,2927.2,1.4507669]
[1644742963351,0.02193319,2927.5,2927.2,1.4507669]
[1644742963750,0.02193319,2927.5,2927.2,1.4398]
[1644742964154,0.02193319,2927.5,2927.2,1.4507669]
[1644742964556,0.01432285,2927.4,2927.2,1.4507669]
[1644742964756,0.02193319,2927.5,2927.2,1.4507669]
[1644742965056,0.02193319,2927.5,2927.2,1.4398]
[1644742965256,0.02193319,2927.5,2927.2,1.4507669]
[1644742966101,0.01432285,2927.4,2927.3,0.85401]
[1644742966902,0.01432285,2927.4,2927.2,1.45433786]
[1644742967204,0.02193319,2927.5,2927.2,1.45433786]
[1644742967403,0.02193319,2927.5,2927.2,1.44337096]
[1644742967603,0.01432285,2927.4,2927.2,1.45433794]
[1644742968605,0.01432285,2927.4,2927.2,1.44337096]
[1644742968804,0.02193319,2927.5,2927.2,1.45433794]
[1644742969204,0.01432285,2927.4,2927.2,1.45433794]
[1644742969406,0.02193319,2927.5,2927.2,4.95433794]
[1644742969655,0.02193319,2927.5,2927.2,1.45433794]
[1644742969859,0.02193319,2927.5,2927.2,1.44337096]
[1644742970155,0.02193319,2927.5,2927.2,1.45433786]
[1644742970666,0.01432285,2927.4,2927.2,1.45433786]
[1644742970855,0.02193319,2927.5,2927.2,1.45433786]
[1644742971054,0.02193319,2927.5,2927.2,1.44337096]
[1644742971253,0.02193319,2927.5,2927.2,1.45433794]
[1644742972256,0.01432285,2927.4,2927.2,1.44337096]
[1644742972456,0.01432285,2927.4,2927.2,1.45433786]
[1644742972855,0.02193319,2927.5,2927.2,1.45433786]
[1644742973500,0.02193319,2927.5,2927.2,1.44337096]
[1644742973698,0.01432285,2927.4,2927.2,1.45433786]
[1644742974499,0.01432285,2927.4,2927.2,1.75433786]
[1644742974705,0.02193319,2927.5,2927.2,1.74337096]
[1644742974904,0.02193319,2927.5,2927.2,1.75433794]
[1644742975205,0.01432285,2927.4,2927.2,1.75433794]
[1644742975404,0.01432285,2927.4,2927.2,1.45433794]
[1644742975604,0.020771,2927.5,2927.2,1.45433794]
[1644742975809,0.020771,2927.5,2927.2,1.44337096]
[1644742976005,0.020771,2927.5,2927.2,1.45433794]
[1644742976906,0.01432285,2927.4,2927.2,1.45433794]
[1644742977152,0.020771,2927.5,2927.2,1.44337096]
[1644742977452,0.020771,2927.5,2927.2,1.45433786]
[1644742978150,0.020771,2927.5,2927.2,1.75433786]
[1644742978354,0.01432285,2927.4,2927.2,1.74337096]
[1644742978550,0.01432285,2927.4,2927.2,1.75433786]
[1644742978751,0.020771,2927.5,2927.2,1.75433786]
[1644742978949,0.020771,2927.5,2927.2,1.45433786]
[1644742979350,0.020771,2927.5,2927.2,1.75433786]
[1644742979554,0.020771,2927.5,2927.2,1.74337096]
[1644742979756,0.020771,2927.5,2927.2,1.75433786]
[1644742979955,0.01432285,2927.4,2927.2,1.75433786]
[1644742980154,0.020771,2927.5,2927.2,1.45433786]
[1644742980354,0.020771,2927.5,2927.2,1.75433786]
[1644742980554,0.020771,2927.5,2927.2,1.74337096]
[1644742980797,0.020771,2927.5,2927.2,1.75433786]
[1644742981596,0.01432285,2927.4,2927.2,1.75433786]
[1644742981797,0.020771,2927.5,2927.2,1.74337096]
[1644742981999,0.020771,2927.5,2927.2,1.75433786]
[1644742982999,0.020771,2927.5,2927.2,1.74337096]
[1644742983000,0.01432285,2927.4,2927.2,1.74337096]
[1644742983199,0.01432285,2927.4,2927.2,1.75433786]
[1644742983398,0.020771,2927.5,2927.2,1.75433786]
[1644742984202,0.020771,2927.5,2927.2,1.44337096]
[1644742984402,0.01432285,2927.4,2927.3,3.5]
[1644742984653,0.01432285,2927.4,2927.2,1.75433786]
[1644742984855,0.020771,2927.5,2927.2,1.75433786]
[1644742985254,0.020771,2927.5,2927.2,1.45433786]
[1644742985556,0.020771,2927.5,2927.2,1.44337096]
[1644742985753,0.020771,2927.5,2927.2,1.45433786]
[1644742985954,0.01432285,2927.4,2927.2,1.45433786]
[1644742986159,0.020771,2927.5,2927.2,1.45433786]
[1644742986555,0.020771,2927.5,2927.2,1.44337096]
[1644742986754,1.18542332,2927.5,2927.2,1.44337096]
[1644742986956,1.45306598,2927.4,2927.2,0.31453786]
[1644742987355,1.45306598,2927.4,2927.2,0.01453786]
[1644742987756,1.45306598,2927.4,2927.2,0.00357096]
[1644742988057,1.45306598,2927.4,2927.2,0.01453794]
[1644742989102,0.01432285,2927.3,2927.2,0.00357096]
[1644742989303,0.01432285,2927.3,2927.2,0.01096698]
[1644742990208,0.01432285,2927.3,2927.1,1.60357096]
[1644742990409,0.020771,2927.5,2927.1,1.61453801]
[1644742990812,1.45300221,2927.4,2927.1,1.61453801]
[1644742991413,1.45300221,2927.4,2927.1,1.60357096]
[1644742991612,1.45300221,2927.4,2927.1,1.61453801]
[1644742992059,0.01432285,2927.2,2927.1,1.61453801]
[1644742992262,0.01432285,2927.2,2927.1,1.61096705]
[1644742992662,0.01432285,2927.2,2927.1,1.6]
[1644742996704,0.0133773,2927.2,2927.1,1.6]
[1644742996904,0.020771,2927.5,2927.1,1.6]
[1644742997104,1.45302573,2927.4,2927.1,1.60357096]
[1644742997705,1.45302573,2927.4,2927.1,1.61453801]
[1644742998506,0.0133773,2927.2,2927.1,1.61453801]
[1644742998708,0.0133773,2927.2,2927.1,1.6]
[1644742998906,0.0133773,2927.2,2927.1,1.61096705]
[1644742999955,0.0133773,2927.2,2927.1,1.6]
[1644743002160,1.09285186,2927.5,2927.1,1.6]
[1644743002357,1.45308496,2927.4,2927.1,1.60357096]
[1644743003159,1.45308496,2927.4,2927.1,1.30357096]
[1644743003800,1.45308496,2927.4,2927.1,1.31453801]
[1644743004209,1.45308496,2927.4,2927.1,0.01453801]
[1644743004210,4.68922453,2927.4,2927.1,0.01453801]
[1644743004404,4.68922453,2927.4,2927.1,0.01096705]
[1644743004405,1.45308496,2927.3,2927.1,0.01096705]
[1644743004606,1.45308496,2927.3,2926.9,0.00357096]
[1644743004607,0.0219341,2927.0,2926.9,0.00357096]
[1644743004805,0.0219341,2927.0,2926.4,0.00357096]
[1644743005106,1.45308496,2926.9,2926.4,0.00357096]
[1644743005305,1.09318138,2926.5,2926.4,0.00357096]
[1644743005606,1.09318138,2926.5,2926.2,0.00357096]
[1644743005805,1.45308496,2926.4,2926.2,0.00357096]
[1644743006305,1.09318138,2926.5,2926.2,0.00357096]
[1644743007262,0.1708,2926.9,2926.2,0.00357096]
[1644743007462,1.45344477,2926.8,2926.2,0.00357096]
[1644743008269,1.1884811,2926.6,2926.2,0.00357096]
[1644743008468,1.1884811,2926.6,2926.4,0.0109444]
[1644743009471,1.1884811,2926.6,2926.2,0.00357096]
[1644743009669,1.1884811,2926.6,2926.4,0.0109444]
[1644743010667,1.1884811,2926.6,2926.2,0.00357096]
[1644743010902,0.0219341,2927.0,2926.4,0.0109444]
[1644743011106,1.45352429,2926.9,2926.4,0.0109444]
[1644743011305,3.24827506,2926.8,2926.4,0.0109444]
[1644743011506,1.45352429,2926.7,2926.4,0.0109444]
[1644743011705,3.39309687,2926.6,2926.4,0.0109444]
[1644743011905,1.45352429,2926.5,2925.8,0.00200209]
[1644743012110,1.45352429,2926.5,2926.4,0.01094433]
[1644743012308,1.45352429,2926.8,2926.4,0.01094433]
[1644743012504,0.94889735,2926.5,2926.4,0.01094433]
[1644743012704,2.40242164,2926.5,2926.4,0.01094433]
[1644743013105,2.40242164,2926.5,2925.8,0.00200209]
[1644743013306,0.94889735,2926.5,2926.3,0.01073927]
[1644743014307,0.94889735,2926.5,2925.8,0.00200209]
[1644743014566,0.94889735,2926.5,2926.3,0.01073934]
[1644743015564,0.94889735,2926.5,2925.8,0.00200209]
[1644743015764,0.94889735,2926.5,2926.3,0.01073934]
[1644743016762,0.0219341,2927.0,2925.8,0.00200209]
[1644743016966,0.0219341,2927.0,2926.3,0.01045916]
[1644743016967,1.45362403,2926.9,2926.3,0.01045916]
[1644743017373,1.45362403,2926.9,2926.3,0.50645916]
[1644743017673,1.45362403,2926.9,2926.4,0.00200209]
[1644743018167,1.45362403,2926.9,2926.5,0.0104589]
[1644743019206,1.45362403,2926.9,2926.4,0.00200209]
[1644743019407,1.45362403,2926.9,2926.6,0.01045877]
[1644743020412,1.45362403,2926.9,2926.4,0.00200209]
[1644743020712,1.45362403,2926.9,2926.6,0.01037925]
[1644743021514,1.45362403,2926.9,2926.4,0.00200209]
[1644743021717,3.10870405,2926.8,2926.6,0.01037925]
[1644743021918,1.45362403,2926.7,2926.6,0.01037925]
[1644743022160,0.1708,2926.9,2926.6,0.01037925]
[1644743022161,1.45362403,2926.8,2926.6,0.01037925]
[1644743022365,0.1708,2926.9,2926.6,0.01037925]
[1644743022569,1.45366338,2926.8,2926.6,0.01037925]
[1644743022764,1.45366338,2926.8,2926.0,0.00354296]
[1644743022765,0.94874862,2926.2,2926.0,0.00354296]
[1644743023363,0.1708,2926.9,2926.0,0.00354296]
[1644743023562,0.1708,2926.7,2926.0,0.00354296]
[1644743023764,0.1708,2926.9,2926.0,0.00354296]
[1644743023964,0.1708,2926.7,2926.0,0.00354296]
[1644743024162,0.0219341,2927.0,2926.0,0.00354296]
[1644743024163,0.1708,2926.9,2926.0,0.00354296]
[1644743024363,0.87544656,2926.5,2926.0,0.00354296]
[1644743027705,0.87544656,2926.5,2926.1,0.01094412]
[1644743028804,0.87544656,2926.5,2926.0,0.00354296]
[1644743029003,0.87544656,2926.5,2926.2,0.01094405]
[1644743029205,3.16018902,2926.4,2926.2,0.01094405]
[1644743029407,3.16018902,2926.4,2925.7,0.04378276]
[1644743029408,0.0218881,2926.1,2925.7,0.04378276]
[1644743029658,3.22023823,2926.1,2925.7,0.04378276]
[1644743029861,0.0218881,2926.1,2925.5,0.00354296]
[1644743030057,0.84229641,2925.6,2925.5,0.00354296]
[1644743030263,0.84229641,2925.6,2925.3,0.00354296]
[1644743030559,0.84229641,2925.6,2925.3,0.30354296]
[1644743030759,0.84229641,2925.6,2925.1,0.47434296]
[1644743030958,0.84229641,2925.6,2925.1,0.17434296]
[1644743031758,3.47278397,2926.1,2925.1,0.17434296]
[1644743031959,3.47278397,2926.1,2925.2,0.00354296]
[1644743032160,3.47278397,2926.1,2925.3,0.1708]
[1644743032361,3.47278397,2926.1,2925.4,0.00354296]
[1644743032560,3.47278397,2926.1,2925.5,0.00437016]
[1644743032766,0.91482381,2925.9,2925.5,0.00437016]
[1644743033604,0.91482381,2925.9,2925.2,0.00354296]
[1644743033805,0.91482381,2925.9,2925.6,0.01094494]
[1644743034709,0.91482381,2925.9,2925.2,0.00354296]
[1644743034911,0.91482381,2925.9,2925.6,0.01094487]
[1644743035612,3.04340023,2925.8,2925.6,0.01094487]
[1644743036013,3.04260189,2925.8,2925.2,0.00354296]
[1644743036213,0.91482381,2925.9,2925.6,0.01094494]
[1644743036612,3.07382729,2925.8,2925.6,0.01094494]
[1644743037065,3.07382729,2925.8,2925.3,0.00354296]
[1644743037255,0.91482381,2925.9,2925.3,0.00354296]
[1644743037455,0.91482381,2925.9,2925.6,0.01094494]
[1644743038355,0.91482381,2925.9,2925.3,0.00354296]
[1644743038654,0.91482381,2925.9,2925.6,0.01094487]
[1644743039457,0.91482381,2925.9,2925.3,0.00354296]
[1644743039861,0.91482381,2925.9,2925.6,0.01094487]
[1644743040062,3.43170231,2926.1,2925.6,0.01094487]
[1644743040813,3.43170231,2926.1,2925.3,0.00354296]
[1644743041015,1.19390546,2926.0,2925.3,0.00827312]
[1644743041414,1.19390546,2926.0,2925.3,0.01181858]
[1644743042014,1.19390546,2926.0,2925.3,0.00354546]
[1644743042216,3.08085949,2925.9,2925.3,0.00354546]
[1644743042514,3.0766129,2925.9,2925.3,0.00354546]
[1644743042714,1.19390546,2926.0,2925.3,0.00354546]
[1644743042715,1.14390546,2926.0,2925.3,0.00354546]
[1644743043415,3.05316351,2925.9,2925.3,0.00354546]
[1644743043613,3.04914626,2925.9,2925.3,0.00354546]
[1644743043815,1.14390546,2926.0,2925.3,0.00354546]
[1644743045764,0.01056993,2925.8,2925.3,0.00354546]
[1644743046763,3.07630748,2925.9,2925.3,0.00354546]
[1644743046962,0.01057007,2925.7,2925.3,0.00354546]
[1644743047962,1.14390546,2926.0,2925.3,0.00354546]
[1644743048166,0.01057014,2925.6,2925.3,0.00354546]
[1644743049209,3.05869336,2925.9,2925.3,0.00354546]
[1644743049509,0.0105702,2925.6,2925.2,0.0105718]
[1644743049712,0.0105702,2925.6,2925.2,0.01411726]
[1644743050315,1.14390546,2926.0,2925.2,0.00354546]
[1644743050616,0.01037335,2925.5,2925.2,0.01392021]
[1644743051616,0.1708,2925.8,2925.2,0.00354546]
[1644743051817,0.01037342,2925.5,2925.2,0.01392009]
[1644743052062,1.14448467,2925.4,2925.2,0.01392009]
[1644743052255,0.01037342,2925.5,2925.2,0.01392009]
[1644743052754,3.69812484,2926.1,2925.2,0.00354546]
[1644743052954,0.01037342,2925.5,2925.2,0.01392009]
[1644743053360,1.03060922,2925.5,2925.2,0.01392009]
[1644743053955,1.0202358,2925.5,2925.2,0.00354546]
[1644743054156,1.03062252,2925.5,2925.2,0.0139334]
[1644743054960,0.01038672,2925.5,2925.2,0.0139334]
[1644743055161,3.69812484,2926.1,2925.2,0.00354546]
[1644743055364,0.01038672,2925.5,2925.2,0.0139334]
[1644743057504,3.07824515,2925.8,2925.2,0.00354546]
[1644743057705,0.01038582,2925.5,2925.2,0.0139325]
[1644743058705,1.05156408,2925.9,2925.2,0.00354546]
[1644743058905,0.01038582,2925.5,2925.2,0.0139325]
[1644743059956,3.07445355,2925.8,2925.2,0.00354546]
[1644743060159,0.01038582,2925.5,2925.2,0.0139325]
[1644743060355,0.99532732,2925.4,2925.2,0.0139325]
[1644743061160,0.99532732,2925.4,2924.9,0.00354546]
[1644743061369,1.00571327,2925.4,2925.2,0.01038699]
[1644743061754,3.25738125,2925.3,2925.2,0.01038699]
[1644743062357,3.25738125,2925.3,2924.9,1.00354546]
[1644743062557,3.25738125,2925.3,2925.1,0.01038705]
[1644743063614,3.25738125,2925.3,2924.9,0.00354546]
[1644743063821,3.25738125,2925.3,2925.1,0.01038712]
[1644743064026,3.42818125,2925.3,2925.1,0.01038712]
[1644743064216,1.45422619,2925.2,2925.1,0.01038712]
[1644743064416,3.36687256,2925.2,2925.1,0.01038712]
[1644743064616,4.82110051,2925.2,2925.1,0.01038712]
[1644743064816,4.82110051,2925.2,2924.9,0.00354546]
[1644743065017,4.82110051,2925.2,2925.0,0.01038719]
[1644743065018,3.36687256,2925.2,2925.0,0.01038719]
[1644743066116,3.36687256,2925.2,2925.0,0.01038725]
[1644743067064,3.36549731,2925.2,2924.8,0.00354546]
[1644743067456,3.36549731,2925.2,2925.0,0.01038725]
[1644743067655,1.02440031,2925.2,2925.0,0.01038725]
[1644743067855,3.34413072,2925.1,2925.0,0.01038725]
[1644743068261,3.34413072,2925.1,2924.8,0.00354546]
[1644743068459,1.02440031,2925.2,2924.6,0.25354546]
[1644743068659,3.26035736,2925.1,2924.9,0.01038732]
[1644743069459,3.26035736,2925.1,2924.5,0.00354546]
[1644743069665,3.43115736,2925.1,2924.5,0.00354546]
[1644743069865,3.43115736,2925.1,2924.9,0.01038739]
[1644743070065,0.1708,2925.1,2924.9,0.01038739]
[1644743070263,3.22861297,2925.1,2924.9,0.01038739]
[1644743070667,3.22861297,2925.1,2924.5,0.00354546]
[1644743070904,3.22861297,2925.1,2924.9,0.01038739]
[1644743072006,3.22861297,2925.1,2924.5,0.00354546]
[1644743072205,3.05781297,2925.1,2924.9,0.0103874]
[1644743072407,0.97247321,2925.3,2924.9,0.0103874]
[1644743072607,4.99166571,2925.2,2924.9,0.0103874]
[1644743072807,3.53741379,2925.2,2924.9,0.0103874]
[1644743073208,3.53741379,2925.2,2924.5,0.00354546]
[1644743073510,1.45429416,2925.1,2924.9,0.01038733]
[1644743073709,3.57337144,2925.0,2924.9,0.01038733]
[1644743074212,3.59932762,2925.2,2924.9,0.01038733]
[1644743074408,1.45430212,2925.1,2924.5,0.00354546]
[1644743074657,0.95527248,2924.8,2924.5,0.00354546]
[1644743075654,0.95527248,2924.8,2924.3,0.00354546]
[1644743075855,0.95527248,2924.8,2924.5,0.01038784]
[1644743076255,3.10936532,2924.7,2924.5,0.01038784]
[1644743076656,3.10936532,2924.7,2924.3,0.00354546]
[1644743077056,3.03976091,2924.7,2924.5,0.01038791]
[1644743077259,4.09803315,2925.3,2924.5,0.01038791]
[1644743077455,1.45436716,2925.2,2924.5,0.01038791]
[1644743077657,3.87506167,2925.1,2924.5,0.01038791]
[1644743077858,3.87506167,2925.1,2924.3,0.00354546]
[1644743077859,1.45436716,2925.0,2924.3,0.00354546]
[1644743078156,4.37647763,2924.9,2924.7,0.01038765]
[1644743078404,3.14634621,2924.8,2924.7,0.01038765]
[1644743078604,0.93635435,2924.9,2924.7,0.01038765]
[1644743078805,4.53465292,2924.8,2924.7,0.01038765]
[1644743079006,4.60476699,2924.8,2924.7,0.01038765]
[1644743079218,1.45443239,2924.8,2924.3,0.00354546]
[1644743079409,3.89762861,2925.3,2924.6,0.01038775]
[1644743079611,1.45443551,2925.2,2924.6,0.01038775]
[1644743079809,3.09298493,2925.1,2924.6,0.01038775]
[1644743080015,1.45443551,2925.0,2924.6,0.01038775]
[1644743080408,3.69177082,2925.3,2924.3,0.49954546]
[1644743080409,1.45443551,2924.9,2924.3,0.49954546]
[1644743080608,1.45443551,2924.9,2924.7,0.01038768]
[1644743080808,4.61899148,2925.1,2924.7,0.01038768]
[1644743081008,1.45440065,2925.0,2924.7,0.01038768]
[1644743081610,1.45440065,2925.0,2924.3,1.50386375]
[1644743081810,3.12847771,2924.9,2924.7,0.01038762]
[1644743082056,3.15683635,2925.1,2924.7,0.01038762]
[1644743082256,0.97170167,2925.2,2924.7,0.01038762]
[1644743082257,3.04849893,2924.9,2924.7,0.01038762]
[1644743082457,1.45440186,2924.8,2924.7,0.01038762]
[1644743082854,4.61548758,2924.8,2924.3,0.00354546]
[1644743083053,4.61548758,2924.8,2924.0,1.378]
[1644743083054,3.16108572,2924.8,2924.6,0.0037758]
[1644743083257,3.69945391,2925.1,2924.6,0.0037758]
[1644743083454,1.45443428,2925.0,2924.6,0.0037758]
[1644743083653,3.12344188,2924.9,2924.6,0.0037758]
[1644743083853,3.12344188,2924.9,2924.3,0.00354546]
[1644743084054,3.57409872,2925.1,2924.3,0.00354546]
[1644743084256,1.4544227,2925.0,2924.6,0.0037758]
[1644743084458,3.03400791,2924.9,2924.6,0.0037758]
[1644743084860,3.55743967,2925.1,2924.6,0.0037758]
[1644743085160,3.55743967,2925.1,2924.3,0.00354546]
[1644743085161,1.45441158,2925.0,2924.3,0.00354546]
[1644743085361,1.45441158,2925.0,2924.7,0.01039359]
[1644743086202,3.04248017,2924.9,2924.7,0.01039359]
[1644743086403,3.72777395,2925.3,2924.3,0.00354546]
[1644743086603,1.45441068,2925.2,2924.7,0.00997631]
[1644743086802,3.39722118,2925.1,2924.7,0.00997631]
[1644743087007,1.45441068,2925.0,2924.7,0.00997631]
[1644743087404,1.45441068,2924.9,2924.7,0.00997631]
[1644743087632,0.1708,2925.6,2924.8,0.496]
[1644743087813,0.00997377,2925.4,2924.9,0.49954546]
[1644743088004,1.45425924,2925.3,2925.0,0.496]
[1644743088205,1.45425924,2925.3,2925.1,0.496]
[1644743089004,1.45425924,2925.2,2925.1,0.00997583]
[1644743089204,1.45425924,2925.3,2925.1,0.01220516]
[1644743089405,1.45425924,2925.3,2925.1,0.0086597]
[1644743089867,1.45425924,2925.3,2924.9,0.00354546]
[1644743090058,1.45425924,2925.2,2924.9,0.00354546]
[1644743090259,1.45425924,2925.1,2924.9,0.00354546]
[1644743090460,1.45425924,2925.0,2924.8,0.1708]
[1644743090662,1.13177429,2925.5,2924.9,0.00354546]
[1644743090861,1.45435283,2925.4,2924.7,0.496]
[1644743091161,1.45435283,2925.4,2924.8,0.00354546]
[1644743091362,1.4603714,2925.4,2924.8,0.00354546]
[1644743091560,1.45435283,2925.3,2924.8,0.00354546]
[1644743092562,1.45435283,2925.2,2924.8,0.00354546]
[1644743092762,1.45435283,2925.1,2924.8,0.00354546]
[1644743092961,1.45435283,2925.0,2924.8,0.00354546]
[1644743093166,0.17681857,2925.4,2924.7,0.496]
[1644743093409,1.45438868,2925.3,2924.8,0.00354546]
[1644743093806,1.45438868,2925.2,2924.9,0.01034667]
[1644743094106,1.45438868,2925.1,2924.9,0.01034667]
[1644743094306,1.45438868,2925.0,2924.9,0.01034667]
[1644743094506,1.45438868,2925.3,2924.9,0.01034667]
[1644743094710,1.45438868,2925.3,2924.8,0.00354546]
[1644743095110,1.45438868,2925.3,2924.8,0.0140288]
[1644743095712,0.1708,2925.2,2924.8,0.01048334]
[1644743095911,1.45438868,2925.1,2924.6,0.00354546]
[1644743096314,0.1708,2925.3,2924.9,0.01048319]
[1644743096315,2.71933396,2925.0,2924.9,0.01048319]
[1644743096515,2.71933396,2925.0,2924.0,1.08984443]
[1644743096516,0.03144956,2924.6,2924.0,0.00354546]
[1644743096717,1.45438868,2924.5,2924.1,0.00354546]
[1644743096916,1.62518868,2924.5,2923.8,0.00354546]
[1644743097162,1.45438868,2924.4,2923.8,0.00354546]
[1644743097567,1.03330593,2924.2,2923.8,0.00354546]
[1644743098663,1.03330593,2924.2,2923.9,0.00979363]
[1644743099076,1.45480846,2924.1,2923.9,0.00979363]
[1644743099272,3.6708,2924.0,2923.4,0.03918039]
[1644743099589,1.45480846,2923.9,2923.3,0.1708]
[1644743099771,0.171,2923.8,2923.5,0.04206334]
[1644743100179,0.87239979,2923.7,2923.5,0.04206334]
[1644743100812,0.171,2923.9,2923.5,0.04206334]
[1644743101015,0.171,2924.2,2923.5,0.04206334]
[1644743101413,0.171,2924.2,2923.0,0.04490545]
[1644743101815,0.98395464,2924.0,2923.0,0.04490545]
[1644743102216,0.171,2924.2,2923.5,0.01091727]
[1644743102416,0.01091403,2924.3,2923.5,0.01091727]
[1644743102616,3.51091403,2924.3,2923.6,0.70849491]
[1644743102820,0.01091403,2924.3,2923.6,0.70849491]
[1644743103018,0.01091403,2924.3,2923.7,0.04092649]
[1644743103218,0.86921306,2924.2,2923.7,0.04092649]
[1644743103419,0.86921306,2924.2,2923.8,0.01091695]
[1644743104317,0.86921306,2924.2,2923.7,0.04092649]
[1644743105370,0.00667152,2924.3,2923.7,0.04092649]
[1644743105668,0.1708,2924.5,2923.7,0.04092649]
[1644743105865,0.00667141,2924.3,2923.7,0.64092649]
[1644743106264,0.00667141,2924.3,2923.8,0.04035807]
[1644743106865,0.03144956,2924.6,2923.8,0.04035807]
[1644743107065,0.0109161,2924.3,2923.8,1.08521959]
[1644743107466,0.0109161,2924.3,2923.9,3.29139451]
[1644743107666,0.0109161,2924.3,2923.9,0.496]
[1644743107971,0.1708,2924.5,2924.0,1.0]
[1644743108166,0.01091621,2924.3,2924.0,0.796]
[1644743109206,0.03144956,2924.6,2924.0,0.796]
[1644743109408,0.01091632,2924.3,2924.0,0.796]
[1644743110013,0.01091632,2924.3,2924.0,0.496]
[1644743110414,0.03144956,2924.6,2924.0,0.496]
[1644743110620,0.01091632,2924.3,2924.0,0.496]
[1644743111617,0.1708,2924.5,2924.0,0.496]
[1644743111817,0.01091632,2924.3,2923.9,1.0]
[1644743112460,0.01091632,2924.3,2923.9,1.855]
[1644743112660,0.01091632,2924.3,2924.0,0.496]